[Event "CAT-chT 2020"]
[Site "Catalonia"]
[Date "2020.02.15"]
[Round "5"]
[White "Chalmeta Ugas, Jordi"]
[Black "Lever, Erwan"]
[Result "*"]
[ECO "D80"]
[WhiteElo "2173"]
[BlackElo "2146"]
[Annotator "ChessBase"]
[PlyCount "33"]
[EventDate "2020.01.18"]
[EventType "team-tourn"]
[EventCountry "ESP"]
[SourceTitle "playchess.com"]
[Source "ChessBase"]
[SourceQuality "1"]
[TimeControl "5400+30"]

1. d4 {[%emt 0:00:00]} Nf6 {[%emt 0:00:00]} 2. c4 {[%emt 0:00:00]} g6 {[%emt 0:00:00]} 3. Nc3 {[%emt 0:00:00]} d5 {[%emt 0:00:00]} 4. e3 {[%emt 0:00:00]} Bg7 {[%emt 0:00:00]} 5. cxd5 {[%emt 0:00:00]} Nxd5 {[%emt 0:00:04]} 6. Nxd5 {[%emt 0:00:00]} Qxd5 {[%emt 0:00:06]} 7. Ne2 {[%emt 0:00:02]} O-O {[%emt 0:05:40]} 8. Nc3 {[%emt 0:00:28]} Qd6 {[%emt 0:06:26]} 9. Be2 {[%emt 0:03:20]} c5 {[%emt 0:06:58]} 10. d5 {[%emt 0:00:45]} e6 {[%emt 0:03:55]} 11. e4 {[%emt 0:01:00]} exd5 {[%emt 0:00:45]} 12. exd5 {[%emt 0:00:06]} Nd7 {[%emt 0:06:27]} 13. O-O {[%emt 0:01:07]} Nf6 {[%emt 0:02:37]} 14. Bf3 {[%emt 0:04:22]} Bf5 {[%emt 0:01:25]} 15. g3 {[%emt 0:02:39]} Rfe8 {[%emt 0:07:08]} 16. Bf4 {[%emt 0:02:39]} Qd7 17. Qb3 {[%emt 0:05:22]} *

[Event "CAT-chT 2020"]
[Site "Catalonia"]
[Date "2020.02.15"]
[Round "5"]
[White "Garcia Marin, Guillem"]
[Black "Alvarez Albiol, Victor"]
[Result "*"]
[ECO "A43"]
[WhiteElo "2037"]
[BlackElo "2163"]
[Annotator "NA"]
[PlyCount "29"]
[EventDate "2020.01.18"]
[EventType "team-tourn"]
[EventCountry "ESP"]
[SourceTitle "playchess.com"]
[Source "ChessBase"]
[SourceQuality "1"]
[TimeControl "5400+30"]

1. d4 {[%emt 0:00:00]} Nf6 {[%emt 0:00:00]} 2. Nf3 {[%emt 0:00:00]} c5 {[%emt 0:00:00]} 3. d5 {[%emt 0:00:09]} g6 {[%emt 0:00:03]} 4. Nc3 {[%emt 0:01:17]} Bg7 {[%emt 0:00:25]} 5. e4 {[%emt 0:00:40]} d6 {[%emt 0:00:11]} 6. Bc4 {[%emt 0:01:04]} O-O {[%emt 0:00:28]} 7. O-O {[%emt 0:00:10]} Nbd7 {[%emt 0:03:45]} 8. a4 {[%emt 0:04:35]} Nb6 {[%emt 0:03:20]} 9. Bb3 {[%emt 0:05:34]} Bg4 {[%emt 0:01:05]} 10. a5 {[%emt 0:05:22]} Nbd7 {[%emt 0:00:56]} 11. h3 {[%emt 0:02:08]} Bxf3 {[%emt 0:00:10]} 12. Qxf3 {[%emt 0:00:06]} b6 {[%emt 0:05:15]} 13. axb6 {[%emt 0:08:53]} axb6 {[%emt 0:03:29]} 14. Bg5 {[%emt 0:05:38]} h6 {[%emt 0:06:03]} 15. Bh4 {[%emt 0:04:53]} *

[Event "CAT-chT 2020"]
[Site "Catalonia"]
[Date "2020.02.15"]
[Round "5"]
[White "Valentin Sosa, Ameyalli Mo"]
[Black "Mestre Bellido, Hector"]
[Result "*"]
[ECO "C44"]
[WhiteElo "1634"]
[BlackElo "2285"]
[Annotator "ChessBase"]
[PlyCount "29"]
[EventDate "2020.01.18"]
[EventType "team-tourn"]
[EventCountry "ESP"]
[SourceTitle "playchess.com"]
[Source "ChessBase"]
[SourceQuality "1"]
[TimeControl "5400+30"]

1. e4 {[%emt 0:00:00]} e5 {[%emt 0:00:00]} 2. Nf3 {[%emt 0:00:00]} Nc6 {[%emt 0:00:00]} 3. Bc4 {[%emt 0:00:30]} Bc5 {[%emt 0:00:00]} 4. d3 {[%emt 0:00:10]} d6 {[%emt 0:00:29]} 5. c3 {[%emt 0:00:35]} Nf6 {[%emt 0:01:03]} 6. O-O {[%emt 0:00:13]} a6 {[%emt 0:00:11]} 7. Bb3 {[%emt 0:00:16]} Ba7 {[%emt 0:01:25]} 8. Nbd2 {[%emt 0:02:04]} O-O {[%emt 0:00:17]} 9. h3 {[%emt 0:01:01]} Nh5 {[%emt 0:09:08]} 10. Nc4 {[%emt 0:07:15]} Nf4 {[%emt 0:02:51]} 11. Bxf4 {[%emt 0:00:55]} exf4 {[%emt 0:00:04]} 12. d4 {[%emt 0:00:15]} Kh8 {[%emt 0:17:54]} 13. Re1 {[%emt 0:01:18]} f5 {[%emt 0:00:04]} 14. exf5 {[%emt 0:01:57]} Bxf5 {[%emt 0:11:42]} 15. Bc2 {[%emt 0:01:00]} *

[Event "CAT-chT 2020"]
[Site "Catalonia"]
[Date "2020.02.15"]
[Round "5.2"]
[White "Garriga Cazorla, Pere"]
[Black "Granados Gomez, Manuel"]
[Result "1-0"]
[ECO "D19"]
[WhiteElo "2486"]
[BlackElo "2374"]
[Annotator "ChessBase"]
[PlyCount "53"]
[EventDate "2020.01.18"]
[EventType "team-tourn"]
[EventCountry "ESP"]
[SourceTitle "playchess.com"]
[Source "ChessBase"]
[SourceQuality "1"]
[TimeControl "5400+30"]

1. Nf3 {[%emt 0:00:00]} d5 {[%emt 0:00:00]} 2. c4 {[%emt 0:00:00]} c6 {[%emt 0:00:00]} 3. d4 {[%emt 0:00:00]} Nf6 {[%emt 0:00:07]} 4. Nc3 {[%emt 0:00:00]} dxc4 {[%emt 0:00:09]} 5. a4 {[%emt 0:00:00]} Bf5 {[%emt 0:00:13]} 6. e3 {[%emt 0:00:00]} e6 {[%emt 0:00:08]} 7. Bxc4 {[%emt 0:00:02]} Bb4 {[%emt 0:00:09]} 8. O-O {[%emt 0:00:05]} O-O {[%emt 0:00:10]} 9. Qe2 {[%emt 0:00:01]} Ne4 {[%emt 0:00:13]} 10. Ne5 {[%emt 0:00:20]} Nxc3 {[%emt 0:05:49]} 11. bxc3 {[%emt 0:00:21]} Bxc3 {[%emt 0:00:08]} 12. Ra3 {[%emt 0:00:05]} Bb4 {[%emt 0:00:10]} 13. Rb3 {[%emt 0:01:16]} a5 {[%emt 0:02:16]} 14. e4 {[%emt 0:01:38]} Bg6 {[%emt 0:00:45]} 15. h4 {[%emt 0:07:19]} Qxh4 {[%emt 0:07:00]} 16. Nxg6 {[%emt 0:00:50]} hxg6 {[%emt 0:00:17]} 17. Rh3 {[%emt 0:00:40]} Qe7 {[%emt 0:00:16]} 18. Qg4 {[%emt 0:01:52]} Re8 19. Bg5 {[%emt 0:24:30]} f6 {[%emt 0:02:32]} 20. f4 {[%emt 0:02:02]} b5 {[%emt 0:03:21]} 21. Ba2 {[%emt 0:01:39]} Bd2 {[%emt 0:06:54]} 22. f5 {[%emt 0:02:41]} Bxg5 {[%emt 0:01:04]} 23. Bxe6+ {[%emt 0:00:07]} Qxe6 {[%emt 0:00:19]} 24. fxe6 {[%emt 0:00:06]} Na6 {[%emt 0:00:43]} 25. e5 {[%emt 0:00:27]} Nc7 {[%emt 0:00:42]} 26. exf6 {[%emt 0:00:06]} gxf6 {[%emt 0:00:16]} 27. Rxf6 {[%emt 0:00:16]} 1-0

[Event "CAT-chT 2020"]
[Site "Catalonia"]
[Date "2020.02.15"]
[Round "5.2"]
[White "Cruz Sanchez, Jonathan Esteban"]
[Black "Cuartas Medina, Jaime Alexander"]
[Result "0-1"]
[ECO "B23"]
[WhiteElo "2387"]
[BlackElo "2508"]
[Annotator "ChessBase"]
[PlyCount "107"]
[EventDate "2020.01.18"]
[EventType "team-tourn"]
[EventCountry "ESP"]
[SourceTitle "playchess.com"]
[Source "ChessBase"]
[SourceQuality "1"]
[TimeControl "5400+30"]

1. e4 c5 2. Nc3 Nc6 3. f4 g6 4. Nf3 Bg7 5. Bb5 Nd4 6. O-O Nxb5 7. Nxb5 d5 8. exd5 a6 9. Nc3 Nf6 10. d4 Nxd5 11. dxc5 Nxc3 12. Qxd8+ Kxd8 13. bxc3 Bxc3 14. Rb1 Kc7 15. Rb3 Bf6 16. Bd2 a5 17. Rfb1 Ra7 18. c6 Kxc6 19. Bc3 Kc7 20. Be5+ Bxe5 21. Nxe5 Ra6 22. Rc3+ Kb8 23. Nxf7 Rf8 24. Ne5 Be6 25. Rc6 Rxc6 26. Nxc6+ Kc7 27. Nxa5 b6 28. Nb3 Rxf4 29. Re1 Kd6 30. Re2 Bd5 31. Rd2 e5 32. Rf2 Rc4 33. Re2 b5 34. Kf2 b4 35. g3 Rc8 36. Rd2 g5 37. Nc1 e4 38. Ne2 Ke5 39. c3 bxc3 40. Rc2 Bc4 41. Rxc3 Rf8+ 42. Ke1 Bxa2 43. Rc5+ Bd5 44. Nc3 Rd8 45. Nxd5 Rxd5 46. Rc7 h6 47. Ke2 Ra5 48. Re7+ Kf5 49. Rf7+ Kg4 50. Ke3 Ra2 51. h4 Kxg3 52. hxg5 hxg5 53. Rf1 Kg2 54. Re1 0-1

[Event "CAT-chT 2020"]
[Site "Catalonia"]
[Date "2020.02.15"]
[Round "5.3"]
[White "Arnaudov, G. Petar"]
[Black "Dominguez Pons, Eric"]
[Result "0-1"]
[ECO "D15"]
[WhiteElo "2473"]
[BlackElo "2374"]
[Annotator "ChessBase"]
[PlyCount "72"]
[EventDate "2020.01.18"]
[EventType "team-tourn"]
[EventCountry "ESP"]
[SourceTitle "playchess.com"]
[Source "ChessBase"]
[SourceQuality "1"]
[TimeControl "5400+30"]

1. Nf3 c6 2. d4 d5 3. c4 Nf6 4. Nc3 dxc4 5. e4 b5 6. e5 Nd5 7. a4 Nxc3 8. bxc3 e6 9. Ng5 h6 10. Qh5 g6 11. Qh3 Bb7 12. Be2 Nd7 13. O-O a6 14. f4 Be7 15. Bf3 Qc7 16. Be4 c5 17. Nxf7 Kxf7 18. Bxg6+ Kxg6 19. Qxe6+ Nf6 20. axb5 Bd5 21. Qh3 axb5 22. f5+ Kg7 23. Rxa8 Bxa8 24. exf6+ Bxf6 25. Qg4+ Kf8 26. Bf4 Qg7 27. Qe2 cxd4 28. cxd4 Bxd4+ 29. Kh1 Bf6 30. Bg3 Kg8 31. Qe8+ Kh7 32. Qxb5 Qb7 33. Qxb7+ Bxb7 34. Rb1 Be4 35. Rb6 Rd8 36. h4 Bd4 0-1

[Event "CAT-chT 2020"]
[Site "Catalonia"]
[Date "2020.02.15"]
[Round "5.3"]
[White "Torrecillas Martinez, Antonio"]
[Black "Rios, Cristhian Camilo"]
[Result "0-1"]
[ECO "D31"]
[WhiteElo "2313"]
[BlackElo "2461"]
[Annotator "ChessBase"]
[PlyCount "76"]
[EventDate "2020.01.18"]
[EventType "team-tourn"]
[EventCountry "ESP"]
[SourceTitle "playchess.com"]
[Source "ChessBase"]
[SourceQuality "1"]
[TimeControl "5400+30"]

1. d4 {[%emt 0:00:00]} d5 {[%emt 0:00:04]} 2. c4 {[%emt 0:00:00]} e6 {[%emt 0:00:15]} 3. Nc3 {[%emt 0:00:31]} Bb4 {[%emt 0:00:25]} 4. Qb3 c5 {[%emt 0:01:47]} 5. cxd5 {[%emt 0:06:36]} exd5 6. a3 {[%emt 0:04:42]} Ba5 {[%emt 0:08:54]} 7. e3 c4 {[%emt 0:10:54]} 8. Qc2 {[%emt 0:12:22]} Nc6 {[%emt 0:00:09]} 9. Nf3 {[%emt 0:02:47]} Nge7 10. Be2 {[%emt 0:00:43]} Bf5 {[%emt 0:03:09]} 11. Qd1 {[%emt 0:00:24]} h6 12. O-O {[%emt 0:00:58]} O-O {[%emt 0:02:57]} 13. Bd2 {[%emt 0:21:50]} a6 {[%emt 0:00:44]} 14. b3 {[%emt 0:04:41]} b5 {[%emt 0:01:34]} 15. bxc4 {[%emt 0:01:22]} bxc4 {[%emt 0:00:52]} 16. Na4 {[%emt 0:02:16]} Rb8 {[%emt 0:04:08]} 17. Bxa5 {[%emt 0:03:07]} Qxa5 {[%emt 0:02:11]} 18. Nc5 {[%emt 0:03:03]} Rb2 19. Qe1 Rfb8 {[%emt 0:03:30]} 20. Ne5 {[%emt 0:12:34]} Rxe2 {[%emt 0:20:06]} 21. Nxc6 {[%emt 0:01:41]} Rxe1 {[%emt 0:00:10]} 22. Nxa5 {[%emt 0:00:19]} Rxa1 {[%emt 0:01:07]} 23. Rxa1 {[%emt 0:00:02]} Rb5 {[%emt 0:00:22]} 24. Nab7 {[%emt 0:04:09]} Rb6 {[%emt 0:03:49]} 25. a4 {[%emt 0:02:24]} Nc6 {[%emt 0:02:30]} 26. a5 {[%emt 0:02:07]} Rb2 {[%emt 0:04:07]} 27. Rc1 {[%emt 0:04:41]} Nb4 {[%emt 0:03:35]} 28. Nd6 {[%emt 0:00:39]} Na2 29. Re1 {[%emt 0:01:18]} Bg6 {[%emt 0:03:50]} 30. Na4 {[%emt 0:06:50]} Rb4 {[%emt 0:01:00]} 31. Nb6 {[%emt 0:00:36]} c3 {[%emt 0:02:38]} 32. Nxd5 {[%emt 0:00:11]} Rb1 {[%emt 0:00:15]} 33. Rxb1 Bxb1 {[%emt 0:00:08]} 34. Nxc3 {[%emt 0:01:54]} Nxc3 {[%emt 0:00:07]} 35. Nb7 {[%emt 0:01:34]} Bd3 {[%emt 0:01:22]} 36. Nc5 {[%emt 0:00:29]} Bc4 {[%emt 0:00:23]} 37. f3 {[%emt 0:00:20]} Kf8 {[%emt 0:00:10]} 38. e4 {[%emt 0:00:22]} Ne2+ {[%emt 0:00:11]} 0-1

[Event "CAT-chT 2020"]
[Site "Catalonia"]
[Date "2020.02.15"]
[Round "5.4"]
[White "Sosa, Tomas"]
[Black "Mestre Bellido, Hector"]
[Result "1-0"]
[ECO "C50"]
[WhiteElo "2511"]
[BlackElo "2285"]
[Annotator "ChessBase"]
[PlyCount "97"]
[EventDate "2020.01.18"]
[EventType "team-tourn"]
[EventCountry "ESP"]
[SourceTitle "playchess.com"]
[Source "ChessBase"]
[SourceQuality "1"]
[TimeControl "5400+30"]

1. e4 {[%emt 0:00:00]} e5 {[%emt 0:00:00]} 2. Nf3 {[%emt 0:00:00]} Nc6 {[%emt 0:00:00]} 3. Bc4 {[%emt 0:00:30]} Bc5 {[%emt 0:00:00]} 4. d3 {[%emt 0:00:10]} d6 {[%emt 0:00:29]} 5. c3 {[%emt 0:00:35]} Nf6 {[%emt 0:01:03]} 6. O-O {[%emt 0:00:13]} a6 {[%emt 0:00:11]} 7. Bb3 {[%emt 0:00:16]} Ba7 {[%emt 0:01:25]} 8. Nbd2 {[%emt 0:02:04]} O-O {[%emt 0:00:17]} 9. h3 {[%emt 0:01:01]} Nh5 {[%emt 0:09:08]} 10. Nc4 {[%emt 0:07:15]} Nf4 {[%emt 0:02:51]} 11. Bxf4 {[%emt 0:00:55]} exf4 {[%emt 0:00:04]} 12. d4 Kh8 {[%emt 0:17:54]} 13. Re1 {[%emt 0:01:18]} f5 {[%emt 0:00:04]} 14. exf5 {[%emt 0:01:57]} Bxf5 {[%emt 0:11:42]} 15. Bc2 {[%emt 0:01:00]} Qd7 {[%emt 0:09:27]} 16. Bxf5 {[%emt 0:01:39]} Rxf5 {[%emt 0:01:37]} 17. Qd3 {[%emt 0:02:14]} g6 {[%emt 0:20:20]} 18. Ncd2 {[%emt 0:10:48]} d5 {[%emt 0:01:22]} 19. Re2 {[%emt 0:01:53]} Rff8 {[%emt 0:03:45]} 20. Ne5 {[%emt 0:06:33]} Nxe5 {[%emt 0:00:52]} 21. Rxe5 {[%emt 0:00:08]} c6 {[%emt 0:02:05]} 22. Rae1 {[%emt 0:01:43]} Rae8 {[%emt 0:00:02]} 23. Qe2 {[%emt 0:01:01]} Rxe5 {[%emt 0:00:04]} 24. Qxe5+ {[%emt 0:00:09]} Qg7 {[%emt 0:08:14]} 25. Qg5 {[%emt 0:02:24]} h6 {[%emt 0:00:26]} 26. Qg4 {[%emt 0:00:42]} Kh7 {[%emt 0:04:59]} 27. Nf3 {[%emt 0:00:41]} Bb6 {[%emt 0:01:21]} 28. Re6 {[%emt 0:07:12]} h5 {[%emt 0:00:02]} 29. Qg5 {[%emt 0:03:36]} Bd8 {[%emt 0:00:06]} 30. Qe5 {[%emt 0:00:11]} Qxe5 {[%emt 0:01:42]} 31. Nxe5 {[%emt 0:00:07]} g5 {[%emt 0:00:34]} 32. Rd6 {[%emt 0:00:24]} Re8 {[%emt 0:01:21]} 33. Rd7+ {[%emt 0:00:52]} Kg8 {[%emt 0:00:02]} 34. Rxb7 {[%emt 0:00:51]} Bf6 {[%emt 0:00:01]} 35. Nd3 {[%emt 0:01:09]} Re2 {[%emt 0:00:19]} 36. Kf1 {[%emt 0:00:25]} Rd2 {[%emt 0:00:01]} 37. Ke1 {[%emt 0:13:29]} Rxd3 {[%emt 0:00:03]} 38. Ke2 {[%emt 0:00:05]} Rxd4 {[%emt 0:00:12]} 39. cxd4 {[%emt 0:00:13]} Bxd4 {[%emt 0:00:02]} 40. b4 {[%emt 0:00:47]} c5 {[%emt 0:03:16]} 41. bxc5 {[%emt 0:00:18]} Bxc5 {[%emt 0:00:02]} 42. Rd7 {[%emt 0:00:14]} d4 {[%emt 0:00:46]} 43. Rd5 {[%emt 0:00:06]} Be7 {[%emt 0:00:09]} 44. Rxd4 {[%emt 0:00:05]} a5 {[%emt 0:00:20]} 45. a4 {[%emt 0:00:20]} Kf7 {[%emt 0:00:11]} 46. Rd5 {[%emt 0:00:05]} g4 {[%emt 0:00:55]} 47. Rxh5 {[%emt 0:00:20]} gxh3 {[%emt 0:00:07]} 48. gxh3 {[%emt 0:00:19]} Bb4 {[%emt 0:00:13]} 49. Rf5+ {[%emt 0:00:04]} 1-0

[Event "CAT-chT 2020"]
[Site "Catalonia"]
[Date "2020.02.15"]
[Round "5.6"]
[White "Mellado Trivino, Juan"]
[Black "Garrido Fernandez, Daniel"]
[Result "1-0"]
[ECO "B30"]
[WhiteElo "2349"]
[BlackElo "2266"]
[Annotator "ChessBase"]
[PlyCount "51"]
[EventDate "2020.01.18"]
[EventType "team-tourn"]
[EventCountry "ESP"]
[SourceTitle "playchess.com"]
[Source "ChessBase"]
[SourceQuality "1"]
[TimeControl "5400+30"]

1. e4 {[%emt 0:00:00]} c5 {[%emt 0:00:00]} 2. Nf3 {[%emt 0:00:01]} Nc6 {[%emt 0:00:00]} 3. c3 {[%emt 0:00:42]} d5 {[%emt 0:00:38]} 4. exd5 {[%emt 0:00:51]} Qxd5 {[%emt 0:00:06]} 5. d4 {[%emt 0:00:19]} g6 {[%emt 0:00:15]} 6. Be2 {[%emt 0:14:12]} cxd4 {[%emt 0:01:53]} 7. cxd4 {[%emt 0:22:21]} Bg7 {[%emt 0:00:24]} 8. Nc3 {[%emt 0:00:10]} Qa5 {[%emt 0:00:17]} 9. d5 {[%emt 0:14:35]} Nb4 {[%emt 0:03:07]} 10. O-O {[%emt 0:00:54]} Nf6 {[%emt 0:03:16]} 11. a3 {[%emt 0:05:09]} O-O {[%emt 0:02:01]} 12. axb4 {[%emt 0:09:40]} Qxa1 {[%emt 0:00:08]} 13. Nd4 {[%emt 0:04:36]} Bd7 {[%emt 0:18:30]} 14. Nb3 {[%emt 0:01:19]} Ba4 {[%emt 0:00:05]} 15. Nxa1 {[%emt 0:02:06]} Bxd1 {[%emt 0:00:21]} 16. Rxd1 {[%emt 0:00:03]} Rfd8 {[%emt 0:01:50]} 17. Nb3 {[%emt 0:00:26]} Rac8 {[%emt 0:00:46]} 18. Be3 {[%emt 0:06:09]} Ne8 {[%emt 0:05:14]} 19. Na5 {[%emt 0:03:23]} Bxc3 {[%emt 0:05:39]} 20. bxc3 {[%emt 0:00:10]} Rxc3 {[%emt 0:00:10]} 21. Nxb7 {[%emt 0:01:21]} Rb8 {[%emt 0:00:37]} 22. Na5 {[%emt 0:00:13]} Nd6 {[%emt 0:03:37]} 23. Nc6 {[%emt 0:00:37]} Rb7 {[%emt 0:00:06]} 24. Bc5 {[%emt 0:02:05]} Kf8 {[%emt 0:01:43]} 25. Ba6 {[%emt 0:02:15]} Rc7 {[%emt 0:00:50]} 26. Re1 {[%emt 0:00:21]} 1-0

[Event "CAT-chT 2020"]
[Site "Catalonia"]
[Date "2020.02.15"]
[Round "5.6"]
[White "Bautista Sanchez, Joan"]
[Black "Alonso Moyano, Jonathan"]
[Result "0-1"]
[ECO "A21"]
[WhiteElo "2097"]
[BlackElo "2344"]
[Annotator "ChessBase"]
[PlyCount "90"]
[EventDate "2020.01.18"]
[EventType "team-tourn"]
[EventCountry "ESP"]
[SourceTitle "playchess.com"]
[Source "ChessBase"]
[SourceQuality "1"]
[TimeControl "5400+30"]

1. Nf3 f5 2. c4 Nf6 3. Nc3 d6 4. g3 e5 5. d3 Be7 6. Bg2 O-O 7. O-O Qe8 8. c5 Kh8 9. cxd6 Bxd6 10. Qb3 c6 11. Bg5 h6 12. Bxf6 Rxf6 13. Rad1 Nd7 14. Qc2 Nf8 15. Nd2 Be6 16. Nc4 Bc7 17. a4 a5 18. b3 Rd8 19. Na2 Bd5 20. e4 fxe4 21. dxe4 Bxc4 22. Rxd8 Qxd8 23. bxc4 Ne6 24. c5 Qf8 25. Rc1 Bb8 26. Bh3 Nd4 27. Qb2 Ba7 28. Rf1 Qe7 29. Nc1 Bxc5 30. Nd3 Ba7 31. Bg4 b5 32. axb5 cxb5 33. Qa2 Nc6 34. Kg2 Rd6 35. Rc1 Kh7 36. h4 Qf6 37. Qc2 Bb6 38. h5 Qg5 39. Bf5+ Kh8 40. Bg6 Ne7 41. f4 exf4 42. Nxf4 Be3 43. Rf1 Bxf4 44. Rxf4 Nxg6 45. hxg6 Qxg6 0-1

[Event "CAT-chT 2020"]
[Site "Catalonia"]
[Date "2020.02.15"]
[Round "5.7"]
[White "Obon Temprano, Sergi"]
[Black "Castellano Egea, Einar"]
[Result "1/2-1/2"]
[ECO "C07"]
[WhiteElo "2284"]
[BlackElo "2162"]
[Annotator "ChessBase"]
[PlyCount "44"]
[EventDate "2020.01.18"]
[EventType "team-tourn"]
[EventCountry "ESP"]
[SourceTitle "playchess.com"]
[Source "ChessBase"]
[SourceQuality "1"]
[TimeControl "5400+30"]

1. e4 e6 2. d4 d5 3. Nd2 c5 4. exd5 Qxd5 5. Ngf3 cxd4 6. Bc4 Qd6 7. O-O Nf6 8. Nb3 Nc6 9. Nbxd4 Nxd4 10. Qxd4 Qxd4 11. Nxd4 Be7 12. Rd1 O-O 13. Bf4 Bd7 14. c3 Rfc8 15. Bb3 Rc5 16. Be3 Rcc8 17. Bg5 Rc5 18. Nf5 Rxf5 19. Bxf6 Bc5 20. Bd4 Bc6 21. Bxc5 Rxc5 22. Rd2 Kf8 1/2-1/2

[Event "CAT-chT 2020"]
[Site "Catalonia"]
[Date "2020.02.15"]
[Round "5.7"]
[White "Almeida Toledano, Daniel"]
[Black "Morros Faura, Ricard"]
[Result "1/2-1/2"]
[ECO "B51"]
[WhiteElo "2257"]
[BlackElo "2242"]
[Annotator "ChessBase"]
[PlyCount "98"]
[EventDate "2020.01.18"]
[EventType "team-tourn"]
[EventCountry "ESP"]
[SourceTitle "playchess.com"]
[Source "ChessBase"]
[SourceQuality "1"]
[TimeControl "5400+30"]

1. e4 c5 2. Nf3 d6 3. Bb5+ Nd7 4. a4 Ngf6 5. d3 g6 6. a5 Bg7 7. a6 bxa6 8. Bxa6 Bxa6 9. Rxa6 c4 10. O-O O-O 11. Nc3 cxd3 12. cxd3 Nc5 13. Ra3 Qb6 14. Qe2 e6 15. d4 Nb3 16. e5 Nxc1 17. Rxc1 dxe5 18. dxe5 Nd7 19. Rd1 Qb7 20. Ne4 Nxe5 21. Nxe5 Bxe5 22. Qf3 Qxb2 23. Rad3 Rac8 24. Rb3 Qc2 25. g3 Rc7 26. h4 h5 27. Kg2 Bg7 28. Rd6 a5 29. Ra6 Rc4 30. Nd6 Rc3 31. Rxc3 Qxc3 32. Qb7 Qd2 33. Nc4 Qd5+ 34. Qxd5 exd5 35. Nxa5 Rd8 36. Nc6 Rd7 37. Ra8+ Kh7 38. Kf3 Bf6 39. Ke3 Rb7 40. Ra3 Kg7 41. Rd3 Rc7 42. Nb4 d4+ 43. Ke4 Re7+ 44. Kf3 Rd7 45. Ke4 Be7 46. Nc6 f5+ 47. Ke5 Bf6+ 48. Ke6 Rb7 49. Ra3 Rc7 1/2-1/2

[Event "CAT-chT 2020"]
[Site "Catalonia"]
[Date "2020.02.15"]
[Round "5.8"]
[White "Montilla Carrillo, Esteban"]
[Black "Arias Boo, Guillermo"]
[Result "1-0"]
[ECO "B07"]
[WhiteElo "2187"]
[BlackElo "2191"]
[Annotator "ChessBase"]
[PlyCount "73"]
[EventDate "2020.01.18"]
[EventType "team-tourn"]
[EventCountry "ESP"]
[SourceTitle "playchess.com"]
[Source "ChessBase"]
[SourceQuality "1"]
[TimeControl "5400+30"]

1. e4 {[%emt 0:00:00]} d6 {[%emt 0:00:00]} 2. d4 {[%emt 0:00:12]} Nf6 {[%emt 0:00:00]} 3. Nc3 {[%emt 0:00:18]} Nbd7 {[%emt 0:00:00]} 4. Nf3 {[%emt 0:00:57]} e5 {[%emt 0:00:01]} 5. Bc4 {[%emt 0:00:25]} Be7 {[%emt 0:00:09]} 6. O-O {[%emt 0:08:29]} c6 {[%emt 0:00:10]} 7. a4 {[%emt 0:00:33]} Qc7 {[%emt 0:00:07]} 8. Re1 {[%emt 0:06:45]} h6 {[%emt 0:00:24]} 9. a5 {[%emt 0:02:36]} Nf8 {[%emt 0:00:58]} 10. Nh4 {[%emt 0:07:00]} g6 {[%emt 0:11:04]} 11. d5 {[%emt 0:22:43]} Bd7 {[%emt 0:32:13]} 12. Bb3 Nxd5 {[%emt 0:08:47]} 13. exd5 {[%emt 0:11:38]} Bxh4 {[%emt 0:00:28]} 14. a6 {[%emt 0:01:13]} c5 {[%emt 0:01:35]} 15. axb7 {[%emt 0:00:38]} Qxb7 {[%emt 0:00:17]} 16. g3 {[%emt 0:01:34]} Be7 {[%emt 0:02:33]} 17. f4 {[%emt 0:00:18]} f6 {[%emt 0:01:42]} 18. fxe5 {[%emt 0:01:53]} fxe5 {[%emt 0:00:49]} 19. Rf1 {[%emt 0:02:04]} Rh7 {[%emt 0:16:49]} 20. Bc4 {[%emt 0:02:31]} Qb4 {[%emt 0:02:12]} 21. Qe2 {[%emt 0:01:00]} h5 {[%emt 0:00:49]} 22. Ne4 {[%emt 0:04:12]} Bg4 {[%emt 0:03:34]} 23. Qd3 {[%emt 0:00:09]} Bf5 {[%emt 0:01:12]} 24. Bd2 {[%emt 0:01:25]} Bxe4 {[%emt 0:01:48]} 25. Qe2 {[%emt 0:13:52]} Qxb2 {[%emt 0:02:48]} 26. Qxe4 {[%emt 0:01:31]} Qd4+ {[%emt 0:00:14]} 27. Qxd4 {[%emt 0:00:05]} cxd4 {[%emt 0:00:08]} 28. Bb5+ {[%emt 0:00:17]} Nd7 {[%emt 0:01:31]} 29. Bc6 {[%emt 0:00:05]} Rb8 {[%emt 0:01:14]} 30. Rxa7 {[%emt 0:00:14]} Bd8 {[%emt 0:00:19]} 31. Bh6 {[%emt 0:01:32]} Rf7 {[%emt 0:03:26]} 32. Rxf7 {[%emt 0:00:55]} Kxf7 {[%emt 0:00:05]} 33. Rxd7+ {[%emt 0:00:26]} Kf6 {[%emt 0:00:12]} 34. h4 {[%emt 0:00:51]} Kf5 {[%emt 0:00:14]} 35. Rxd6 {[%emt 0:00:40]} Be7 {[%emt 0:00:58]} 36. Rd7 {[%emt 0:01:03]} Bc5 {[%emt 0:00:13]} 37. Rf7+ {[%emt 0:00:14]} 1-0

[Event "CAT-chT 2020"]
[Site "Catalonia"]
[Date "2020.02.15"]
[Round "5.8"]
[White "Travesset Ribera, Daniel"]
[Black "Perez Manas, Benjamin"]
[Result "1-0"]
[ECO "D34"]
[WhiteElo "2097"]
[BlackElo "2280"]
[Annotator "ChessBase"]
[PlyCount "45"]
[EventDate "2020.01.18"]
[EventType "team-tourn"]
[EventCountry "ESP"]
[SourceTitle "playchess.com"]
[Source "ChessBase"]
[SourceQuality "1"]
[TimeControl "5400+30"]

1. c4 Nf6 2. Nf3 e6 3. g3 c5 4. Bg2 Be7 5. O-O Nc6 6. Nc3 d5 7. cxd5 exd5 8. d4 O-O 9. b3 Ne4 10. Bb2 Bf6 11. Na4 b5 12. Nxc5 Nxc5 13. Rc1 Nb4 14. Rxc5 Be7 15. a3 Bxc5 16. dxc5 Na6 17. Qd4 f6 18. Ng5 Nc7 19. Rd1 Re8 20. Ne4 Bg4 21. Nd6 Rxe2 22. Qxg4 Rxb2 23. Bxd5+ 1-0

[Event "CAT-chT 2020"]
[Site "Catalonia"]
[Date "2020.02.15"]
[Round "5.9"]
[White "Martinez Ramirez, Erik"]
[Black "Travesset Sagre, Jan"]
[Result "1-0"]
[ECO "B12"]
[WhiteElo "2229"]
[BlackElo "2022"]
[Annotator "ChessBase"]
[PlyCount "109"]
[EventDate "2020.01.18"]
[EventType "team-tourn"]
[EventCountry "ESP"]
[SourceTitle "playchess.com"]
[Source "ChessBase"]
[SourceQuality "1"]
[TimeControl "5400+30"]

1. e4 c6 2. Nf3 g6 3. d4 Bg7 4. Nbd2 d5 5. c3 dxe4 6. Nxe4 Nf6 7. Nxf6+ exf6 8. Be3 O-O 9. Qd2 Re8 10. O-O-O Qa5 11. b3 Na6 12. Kb2 Bf8 13. b4 Qa4 14. Qc2 Qxc2+ 15. Kxc2 Nc7 16. a4 Nd5 17. Bd2 a6 18. h3 Be6 19. a5 Bd6 20. g3 Bf5+ 21. Bd3 Bxd3+ 22. Kxd3 f5 23. Rhe1 Nf6 24. Bh6 Rxe1 25. Rxe1 Ne4 26. Re2 Nf6 27. Nd2 Re8 28. Rxe8+ Nxe8 29. Nc4 Bc7 30. Bf4 Bxf4 31. gxf4 Kf8 32. Ne5 f6 33. Nd7+ Ke7 34. Nc5 Nd6 35. c4 g5 36. d5 cxd5 37. cxd5 h5 38. Ke3 h4 39. f3 Kf7 40. Ne6 Kg6 41. Nd4 Kh5 42. Ne2 g4 43. Ng1 g3 44. Kd4 Kg6 45. Kc5 Nf7 46. Kb6 Nd6 47. Kc7 Ne8+ 48. Kxb7 Kf7 49. Kxa6 Ke7 50. Kb6 Kd6 51. a6 Nc7 52. a7 Nxd5+ 53. Kb7 Nc7 54. b5 Kd7 55. a8=Q 1-0